fUST/lending_fUST_20250519
["ID","MTS","AMOUNT","RATE_DAILY","PERIOD"]
[361609768,1747637445004,-430.0,0.00024657,4]
[361609769,1747637445013,-430.0,0.00024657,4]
[361609770,1747637445022,-495.66039487,0.00024657,4]
[361609771,1747637445032,-430.0,0.00024657,4]
[361609772,1747637445042,-510.0,0.00024657,4]
[361609773,1747637445052,-237.91066869,0.00024658,2]
[361609774,1747637445064,-501.59654196,0.00024673,2]
[361609775,1747637445074,-500.0,0.00024673,2]
[361609776,1747637445083,-602.18601422,0.00024693,11]
[361609777,1747637445093,-151.0,0.000247,8]
[361609778,1747637445102,-151.0,0.000247,7]
[361609779,1747637445112,-151.0,0.000247,5]
[361609780,1747637445121,-12848.72686943,0.00024774,2]
[361609781,1747637445132,-200.0,0.000248,2]
[361609782,1747637445141,-151.0,0.000248,6]
[361609783,1747637445151,-151.0,0.000248,6]
[361609784,1747637445160,-22005.1836361,0.000248,2]
[361609785,1747637445170,-602.18601422,0.00024866,12]
[361609786,1747637445179,-500.0,0.00024873,2]
[361609787,1747637445188,-14670.1224241,0.0002489,2]
[361609788,1747637445198,-6906.26049352,0.00024894,2]
[361609789,1747637445207,-1506.61,0.000249,7]
[361609790,1747637445217,-655.65,0.000249,7]
[361609791,1747637445230,-151.0,0.000249,6]
[361609792,1747637445239,-615373.084453,0.000249,2]
[361609793,1747637445248,-200.0,0.0002492,12]
[361609794,1747637445259,-562.14612489,0.00024973,2]
[361609795,1747637445268,-1000.0,0.00025,25]
[361609796,1747637445278,-154.69,0.00025,30]
[361609797,1747637445287,-179362.71656444,0.00025,2]
[361609798,1747637445435,-20637.28343556,0.00025,2]
[361609799,1747637445446,-146717.91655663,0.00025,2]
[361609800,1747637445458,-1013.9836,0.00025,2]
[361609801,1747637445594,-3245.4614382,0.00025,2]
[361609802,1747637445606,-380.2112442,0.00025,2]
[361609803,1747637445619,-420.87043536,0.00025,2]
[361609804,1747637445631,-331.0,0.00025,2]
[361609805,1747637445642,-2046.05074366,0.00025,2]
[361609806,1747637445655,-2816.49324483,0.00025,2]
[361609828,1747637447519,-430.0,0.00024657,4]
[361609830,1747637447530,-430.0,0.00024657,4]
[361609832,1747637447541,-341.81,0.00024657,4]
[361609833,1747637447551,-403.87251466,0.00024657,4]
[361609835,1747637447561,-450.0,0.00024657,4]
[361609837,1747637447571,-1082.08798452,0.00025,2]
[361609839,1747637447583,-2954.79151319,0.00025,2]
[361609841,1747637447594,-550.73773191,0.00025,2]
[361609857,1747637448852,-3211.88646088,0.0002441,2]
[361609894,1747637704041,-259.07923875,0.00011,14]
[361609895,1747637716729,-1641.0,0.00011,14]
[361609896,1747637718335,-99.92076125,0.00011,14]
[361609920,1747638371332,2772.0,0.00025602,120]
[361610047,1747638632552,-1999.54669482,0.0001188,2]
[361610048,1747638632562,-1999.54669482,0.00012,10]
[361610049,1747638632571,-377.616159,0.00013699,2]
[361610050,1747638632580,-765.42915052,0.00020152,2]
[361610053,1747638638506,-1999.54669482,0.00011761,2]
[361610054,1747638638516,-11873.10637316,0.00020152,2]
[361610055,1747638638526,-377.616159,0.00020187,2]
[361610056,1747638638537,-233.0,0.00020274,3]
[361610057,1747638638547,-200.72867152,0.000209,4]
[361610058,1747638638556,-200.7286714,0.00021194,4]
[361610059,1747638638565,-200.7286714,0.00021488,5]
[361610060,1747638638575,-500.0,0.00021683,2]
[361610061,1747638638584,-50000.0,0.00021683,2]
[361610062,1747638638594,-200.7286714,0.00021782,6]
[361610063,1747638638603,-256.823365,0.000219,30]
[361610065,1747638638612,-168.0,0.00022,2]
[361610067,1747638638623,-200.7286714,0.00022076,6]
[361610068,1747638638632,-157.86,0.00022202,2]
[361610069,1747638638642,-200.7286714,0.00022371,7]
[361610070,1747638638651,-200.7286714,0.00022665,7]
[361610071,1747638638661,-200.7286714,0.00022959,8]
[361610072,1747638638670,-825.6,0.00023,3]
[361610073,1747638638679,-500.0,0.00023,2]
[361610074,1747638638688,-500.0,0.00023,3]
[361610075,1747638638698,-172.995,0.00023,2]
[361610076,1747638638707,-187.0,0.00023,7]
[361610077,1747638638717,-168.0,0.00023014,7]
[361610078,1747638638726,-200.7286714,0.00023253,8]
[361610079,1747638638735,-200.7286714,0.00023547,9]
[361610080,1747638638744,-200.7286714,0.00023841,10]
[361610081,1747638638754,-500.0,0.00023875,2]
[361610082,1747638638764,-160.0,0.00023987,2]
[361610083,1747638638773,-422.59250115,0.00023987,2]
[361610084,1747638638783,-998.68447496,0.00023987,2]
[361610085,1747638638792,-200.7286714,0.00024135,10]
[361610086,1747638638802,-187.0,0.00024164,7]
[361610087,1747638638811,-289.0,0.000243,2]
[361610088,1747638638825,-507.779684,0.00024396,2]
[361610089,1747638638837,-200.7286714,0.00024429,11]
[361610091,1747638638848,-726.7756522,0.00024521,2]
[361610092,1747638638861,-229.41329124,0.00024657,4]
[361610093,1747638638872,-400.0,0.00024657,4]
[361610094,1747638638884,-200.0,0.00024657,4]
[361610095,1747638638895,-404.8185478,0.00024657,4]
[361610096,1747638638905,-400.0,0.00024657,4]
[361610097,1747638638915,-400.0,0.00024657,4]
[361610098,1747638638925,-400.0,0.00024657,4]
[361610099,1747638638937,-509.05463221,0.00024657,4]
[361610100,1747638638947,-430.0,0.00024657,4]
[361610101,1747638638959,-430.0,0.00024657,4]
[361610102,1747638638970,-430.0,0.00024657,4]
[361610103,1747638638982,-430.0,0.00024657,4]
[361610104,1747638638994,-430.0,0.00024657,4]
[361610105,1747638639006,-430.0,0.00024657,4]
[361610106,1747638639017,-430.0,0.00024657,4]
[361610107,1747638639028,-430.0,0.00024657,4]
[361610108,1747638639039,-380.34343014,0.00024657,4]
[361610109,1747638639050,-450.0,0.00024657,4]
[361610110,1747638639060,-450.0,0.00024657,4]
[361610111,1747638639072,-450.0,0.00024657,4]
[361610112,1747638639082,-450.0,0.00024657,4]
[361610113,1747638639094,-450.0,0.00024657,4]
[361610114,1747638639105,-458.24528176,0.00024657,4]
[361610115,1747638639117,-455.42353481,0.00024657,4]
[361610116,1747638639127,-430.0,0.00024657,4]
[361610117,1747638639138,-425.89845545,0.00024657,4]
[361610118,1747638639149,-450.0,0.00024657,4]
[361610119,1747638639160,-450.0,0.00024657,4]
[361610120,1747638639171,-430.0,0.00024657,4]
[361610121,1747638639181,-439.92030125,0.00024657,4]
[361610122,1747638639192,-430.0,0.00024657,4]
[361610123,1747638639203,-470.0,0.00024657,4]
[361610124,1747638639214,-430.0,0.00024657,4]
[361610125,1747638639226,-470.0,0.00024657,4]
[361610127,1747638639237,-450.0,0.00024657,4]
[361610129,1747638639247,-450.0,0.00024657,4]
[361610131,1747638639258,-450.0,0.00024657,4]
[361610133,1747638639268,-450.0,0.00024657,4]
[361610135,1747638639278,-450.0,0.00024657,4]
[361610137,1747638639288,-475.24276371,0.00024657,4]
[361610139,1747638639297,-457.85010458,0.00024657,4]
[361610142,1747638639307,-430.0,0.00024657,4]
[361610144,1747638639318,-172.11506988,0.00024657,4]
[361610146,1747638639328,-401.83595121,0.00024657,4]
[361610148,1747638639338,-368.35891881,0.00024657,4]
[361610150,1747638639349,-407.06768821,0.00024657,4]
[361610152,1747638639359,-343.42695898,0.00024657,4]
[361610154,1747638639371,-400.0,0.00024657,4]
[361610157,1747638639381,-430.0,0.00024657,4]
[361610159,1747638639392,-430.0,0.00024657,4]
[361610161,1747638639403,-490.0,0.00024657,4]
[361610163,1747638639413,-450.0,0.00024657,4]
[361610165,1747638639423,-395.0,0.00024657,4]
[361610168,1747638639435,-450.0,0.00024657,4]
[361610170,1747638639447,-400.0,0.00024657,4]
[361610172,1747638639459,-400.0,0.00024657,4]
[361610174,1747638639471,-402.41069058,0.00024657,4]
[361610176,1747638639482,-208.61094179,0.00024657,4]
[361610179,1747638639494,-450.0,0.00024657,4]
[361610181,1747638639507,-430.0,0.00024657,4]
[361610183,1747638639518,-470.0,0.00024657,4]
[361610185,1747638639528,-430.0,0.00024657,4]
[361610187,1747638639539,-450.0,0.00024657,4]
[361610189,1747638639549,-470.0,0.00024657,4]
[361610191,1747638639558,-430.0,0.00024657,4]
[361610193,1747638639568,-470.0,0.00024657,4]
[361610195,1747638639579,-450.0,0.00024657,4]
[361610198,1747638639590,-450.0,0.00024657,4]
[361610200,1747638639602,-450.0,0.00024657,4]
[361610202,1747638639613,-430.0,0.00024657,4]
[361610203,1747638639625,-470.0,0.00024657,4]
[361610204,1747638639637,-400.0,0.00024657,4]
[361610205,1747638639649,-405.04348007,0.00024657,4]
[361610207,1747638639659,-450.0,0.00024657,4]
[361610209,1747638639668,-430.0,0.00024657,4]
[361610211,1747638639679,-478.38326455,0.00024657,4]
[361610213,1747638639689,-430.0,0.00024657,2]
[361610214,1747638639700,-470.0,0.00024657,2]
[361610215,1747638639710,-397.07319464,0.00024657,4]
[361610216,1747638639721,-402.87638586,0.00024657,4]
[361610217,1747638639734,-450.0,0.00024657,4]
[361610218,1747638639744,-430.0,0.00024657,4]
[361610219,1747638639755,-470.0,0.00024657,4]
[361610220,1747638639765,-450.0,0.00024657,4]
[361610221,1747638639775,-410.51366137,0.00024657,4]
[361610222,1747638639784,-249.77123551,0.00024657,4]
[361610223,1747638639794,-404.09915461,0.00024657,4]
[361610224,1747638639804,-430.0,0.00024657,4]
[361610225,1747638639815,-430.0,0.00024657,4]
[361610226,1747638639825,-430.0,0.00024657,4]
[361610227,1747638639835,-430.0,0.00024657,4]
[361610228,1747638639845,-500.0,0.00024657,2]
[361610229,1747638639855,-169.79,0.00024657,4]
[361610230,1747638639865,-409.47482222,0.00024657,4]
[361610231,1747638639875,-406.94870264,0.00024657,4]
[361610232,1747638639885,-180.14078911,0.00024657,4]
[361610233,1747638639905,-279.46647864,0.00024657,4]
[361610234,1747638639915,-100.03513017,0.00024657,4]
[361610255,1747638640720,-174.3965456,0.00024657,4]
[361610256,1747638640734,-400.0,0.00024657,4]
[361610257,1747638640745,-453.72385991,0.00024657,4]
[361610258,1747638640755,-287.84286685,0.00024657,4]
[361610259,1747638640841,-142.15713315,0.00024657,4]
[361610260,1747638640851,-450.0,0.00024657,4]
[361610261,1747638640862,-268.35007732,0.00024657,4]
[361610262,1747638640872,-430.0,0.00024657,4]
[361610264,1747638640883,-415.1441159,0.00024657,4]
[361610267,1747638640896,-54.8558841,0.00024657,4]
[361610268,1747638640906,-450.0,0.00024657,4]
[361610270,1747638640917,-430.0,0.00024657,4]
[361610271,1747638640927,-470.0,0.00024657,4]
[361610273,1747638640938,-450.0,0.00024657,4]
[361610274,1747638640948,-239.96432287,0.00024657,4]
[361610275,1747638640958,-420.38235928,0.00024657,4]
[361610276,1747638640968,-453.16428144,0.00024657,4]
[361610277,1747638640978,-404.38215315,0.00024657,2]
[361610278,1747638640988,-450.0,0.00024657,4]
[361610279,1747638640998,-450.0,0.00024657,4]
[361610280,1747638641009,-430.0,0.00024657,4]
[361610281,1747638641021,-470.0,0.00024657,4]
[361610282,1747638641031,-450.0,0.00024657,4]
[361610283,1747638641042,-450.0,0.00024657,4]
[361610284,1747638641052,-453.48094114,0.00024657,4]
[361610285,1747638641062,-430.0,0.00024657,4]
[361610286,1747638641072,-430.0,0.00024657,4]
[361610287,1747638641082,-430.0,0.00024657,4]
[361610288,1747638641092,-470.0,0.00024657,4]
[361610289,1747638641102,-430.0,0.00024657,4]
[361610290,1747638641112,-430.0,0.00024657,4]
[361610291,1747638641122,-450.0,0.00024657,4]
[361610292,1747638641132,-430.0,0.00024657,4]
[361610293,1747638641142,-470.0,0.00024657,4]
[361610294,1747638641151,-386.07,0.00024657,4]
[361610295,1747638641162,-450.0,0.00024657,4]
[361610296,1747638641172,-450.0,0.00024657,4]
[361610297,1747638641182,-430.0,0.00024657,4]
[361610298,1747638641192,-470.0,0.00024657,4]
[361610299,1747638641201,-450.0,0.00024657,4]
[361610300,1747638641211,-450.0,0.00024657,4]
[361610301,1747638641222,-430.0,0.00024657,4]
[361610302,1747638641233,-470.0,0.00024657,4]
[361610303,1747638641243,-430.0,0.00024657,4]
[361610304,1747638641253,-521.14,0.00024657,4]
[361610305,1747638641263,-450.0,0.00024657,4]
[361610306,1747638641273,-450.0,0.00024657,4]
[361610307,1747638641283,-450.0,0.00024657,4]
[361610308,1747638641293,-450.0,0.00024657,4]
[361610309,1747638641303,-430.0,0.00024657,4]
[361610310,1747638641313,-430.0,0.00024657,4]
[361610311,1747638641324,-496.1,0.00024657,4]
[361610312,1747638641335,-430.0,0.00024657,4]
[361610313,1747638641345,-430.0,0.00024657,4]
[361610314,1747638641531,-450.0,0.00024657,4]
[361610315,1747638641541,-430.0,0.00024657,4]
[361610316,1747638641552,-238.15,0.00024657,4]
[361610317,1747638641561,-430.0,0.00024657,4]
[361610318,1747638641570,-470.0,0.00024657,4]
[361610319,1747638641579,-450.0,0.00024657,4]
[361610320,1747638641588,-450.0,0.00024657,4]
[361610321,1747638641598,-416.80566441,0.00024657,4]
[361610322,1747638641608,-430.0,0.00024657,4]
[361610323,1747638641617,-450.0,0.00024657,4]
[361610324,1747638641626,-430.0,0.00024657,4]
[361610325,1747638641636,-413.77,0.00024657,4]
[361610326,1747638641646,-450.0,0.00024657,4]
[361610327,1747638641655,-450.0,0.00024657,4]
[361610328,1747638641664,-450.0,0.00024657,4]
[361610329,1747638641673,-450.0,0.00024657,4]
[361610330,1747638641683,-450.0,0.00024657,4]
[361610331,1747638641692,-450.0,0.00024657,4]
[361610332,1747638641701,-450.0,0.00024657,4]
[361610333,1747638641710,-450.0,0.00024657,4]
[361610334,1747638641719,-450.0,0.00024657,4]
[361610335,1747638641729,-430.0,0.00024657,4]
[361610336,1747638641738,-470.0,0.00024657,4]
[361610337,1747638641748,-450.0,0.00024657,4]
[361610338,1747638641757,-430.0,0.00024657,4]
[361610339,1747638641766,-430.0,0.00024657,4]
[361610340,1747638641776,-180.31,0.00024657,4]
[361610341,1747638641785,-430.0,0.00024657,4]
[361610342,1747638641795,-503.57810721,0.00024657,4]
[361610343,1747638641804,-450.0,0.00024657,4]
[361610344,1747638641814,-400.65390451,0.00024657,4]
[361610345,1747638641823,-430.0,0.00024657,4]
[361610346,1747638641832,-470.0,0.00024657,4]
[361610347,1747638641842,-450.0,0.00024657,4]
[361610348,1747638641851,-450.0,0.00024657,4]
[361610349,1747638641861,-430.0,0.00024657,4]
[361610350,1747638641870,-470.0,0.00024657,4]
[361610351,1747638641879,-450.0,0.00024657,4]
[361610352,1747638641888,-450.0,0.00024657,4]
[361610353,1747638641897,-430.0,0.00024657,4]
[361610354,1747638641907,-470.0,0.00024657,4]
[361610355,1747638641916,-450.0,0.00024657,4]
[361610356,1747638641925,-430.0,0.00024657,4]
[361610357,1747638641934,-311.19239482,0.00024657,4]
[361610464,1747638647013,-404.0,0.000208,2]
[361610466,1747638647023,-404.0,0.000238,2]
[361610468,1747638647033,-132.19524083,0.00024657,4]
[361610470,1747638647043,-450.0,0.00024657,4]
[361610472,1747638647052,-450.0,0.00024657,4]
[361610474,1747638647062,-450.0,0.00024657,4]
[361610476,1747638647072,-450.0,0.00024657,4]
[361610478,1747638647081,-400.29517604,0.00024657,4]
[361610487,1747638647162,-49.70482396,0.00024657,4]
[361610489,1747638647173,-332.22336057,0.00024657,4]
[361611005,1747639716733,-305.42821687,0.0001,7]
[361611006,1747639718890,-238.10347877,0.0001,7]
[361611007,1747639721016,-128.08312434,0.0001,7]
[361611047,1747639832786,-339.854543,0.00013426,2]
[361611050,1747639832796,-339.854543,0.00013699,2]
[361611052,1747639832806,-264.50325236,0.0001515,20]
[361611053,1747639832816,-176.0,0.00016438,3]
[361611055,1747639832825,-5241.8303954,0.00018762,2]
[361611057,1747639832834,-186.9348584,0.00019,20]
[361611060,1747639832845,-755.5,0.0001932,7]
[361611062,1747639832855,-160.0,0.00019683,2]
[361611064,1747639832864,-10262.4511641,0.00019692,2]
[361611065,1747639832874,-3834.95931772,0.0002,20]
[361611369,1747639840914,-339.854543,0.00013292,2]
[361611371,1747639840923,-0.466358,0.00019691,2]
[361611373,1747639840935,-296.533642,0.00019691,2]
[361611375,1747639840944,-64.24609649,0.0002,20]
[361611773,1747639845983,-26.55996091,0.0002,20]
[361611776,1747639845994,-339.854543,0.00020187,2]
[361611778,1747639846008,-104.46940388,0.00020196,3]
[361611872,1747639846872,-895.53059612,0.00020196,3]
[361611874,1747639846882,-1000.0,0.00020599,3]
[361611876,1747639846893,-500.0,0.00020697,2]
[361611879,1747639846904,-500.0,0.00020697,2]
[361611881,1747639846915,-463.86930481,0.00020697,2]
[361611883,1747639846926,-500.0,0.00020697,2]
[361611885,1747639846936,-500.0,0.00020697,2]
[361611887,1747639846948,-500.0,0.00020697,2]
[361611889,1747639846959,-387.89130758,0.00020697,2]
[361611892,1747639846970,-500.0,0.00020697,2]
[361611894,1747639846981,-406.37585362,0.00020697,2]
[361611896,1747639846992,-500.0,0.00020697,2]
[361611898,1747639847007,-233.70527451,0.00020697,2]
[361611900,1747639847018,-248.18947494,0.00020697,2]
[361611903,1747639847030,-156.26398373,0.00020697,2]
[361611905,1747639847042,-500.0,0.00020697,2]
[361611907,1747639847053,-442.92732043,0.00020697,2]
[361611909,1747639847064,-256.46446172,0.00020697,2]
[361611912,1747639847078,-1000.0,0.00020698,3]
[361611914,1747639847088,-40093.44870444,0.00020698,2]
[361612466,1747640237927,1901.0,0.000256,120]
[361612468,1747640446478,-305.869088,0.00013426,2]
[361612469,1747640453146,305.869088,0.00013562,2]
[361612470,1747640471610,-305.869088,0.00013562,2]
[361612471,1747640484659,305.869088,0.00013699,2]
[361612473,1747640489800,-4694.130912,0.00013699,2]
[361612474,1747640519590,-305.869088,0.00013562,2]
[361612475,1747640568294,-305.869088,0.00013562,2]
[361612479,1747640602701,-305.869088,0.00013562,2]
[361612480,1747640612379,-305.869088,0.00013426,2]
[361612481,1747640625715,-305.869088,0.00013562,2]
[361612482,1747640645119,-305.869088,0.00013562,2]
[361612483,1747640656395,-305.869088,0.00013562,2]
[361612484,1747640675139,-305.869088,0.00013562,2]
[361613439,1747641031990,-5000.0,0.00013426,2]
[361613440,1747641032000,-305.869088,0.00013699,2]
[361613441,1747641032010,-206.05059066,0.000169,2]
[361613442,1747641032019,-3776.98878594,0.00016996,2]
[361613462,1747641037907,-211.91967866,0.00016996,2]
[361613463,1747641037917,-206.05059041,0.00017246,2]
[361613464,1747641037926,-206.05059041,0.00017592,2]
[361613465,1747641037935,-172.995,0.00017639,2]
[361613466,1747641037944,-89.45030488,0.00017938,2]
[361614027,1747641045918,-116.60028553,0.00017938,2]
[361614028,1747641045928,-654.4184374,0.00017982,2]
[361614029,1747641045938,-300.0,0.00017997,2]
[361614030,1747641045947,-500.0,0.00017998,2]
[361614031,1747641045957,-500.0,0.00017998,2]
[361614032,1747641045966,-500.0,0.00017998,2]
[361614033,1747641045975,-315.96535376,0.00017998,2]
[361614034,1747641045985,-311.96949618,0.00017998,2]
[361614035,1747641045995,-500.0,0.00017998,2]
[361614036,1747641046005,-186.77687488,0.00017998,2]
[361614037,1747641046014,-314.30022419,0.00017998,2]
[361614038,1747641046022,-1575.48974364,0.00017999,3]
[361614039,1747641046032,-1563.68994297,0.00017999,2]
[361614040,1747641046041,-8207.20143995,0.00017999,5]
[361614041,1747641046053,-13554.47596783,0.00017999,5]
[361614107,1747641631451,200.0,0.00025317,120]
[361614140,1747641936167,-48065.0,0.00025493,30]
[361614141,1747641936193,-2199118.94,0.00025493,30]
[361614142,1747641936218,-2052.79756747,0.00025493,120]
[361614143,1747641936243,-232.0,0.00025493,120]
[361614144,1747641936268,-2543.58213559,0.00025493,120]
[361614145,1747641936294,-747987.68029694,0.00025493,30]
[361614146,1747641942703,-200.0,0.00027,120]
[361614147,1747641942732,-700.0,0.00027397,120]
[361614148,1747641942758,-616.0,0.00027397,120]
[361614149,1747641942783,-742.937633,0.00027397,120]
[361614150,1747641949153,-3000000.0,0.00025493,30]
[361614151,1747641952732,-1070068.72970306,0.00025493,30]
[361614152,1747641952756,-5000.0,0.00025493,120]
[361614153,1747641952780,-286042.25128429,0.00025493,30]
[361614154,1747641952802,-105865.65131873,0.00025493,120]
[361614155,1747641952827,-2154.0,0.00025493,120]
[361614156,1747641952851,-1530869.36769392,0.00025493,30]
[361614157,1747641958197,-665798.46230608,0.00025493,30]
[361614158,1747641958221,-200.0,0.00025493,30]
[361614159,1747641958245,-499.999999,0.00025493,120]
[361614160,1747641958269,-12000.0,0.00025493,30]
[361614161,1747641958292,-10080.9,0.00025493,30]
[361614162,1747641958317,-8044.0,0.00025493,120]
[361614163,1747641958340,-21397.30580787,0.00025493,120]
[361614164,1747641958363,-100000.0,0.00025493,30]
[361614165,1747641958389,-100000.0,0.00025493,30]
[361614166,1747641958415,-100000.0,0.00025493,30]
[361614167,1747641958439,-100000.0,0.00025493,30]
[361614168,1747641958462,-100000.0,0.00025493,30]
[361614169,1747641958486,-161.0,0.00025493,31]
[361614170,1747641958510,-5037.32875105,0.00025493,30]
[361614171,1747641958533,-216405.78350904,0.00025493,60]
[361614172,1747641958557,-414.30626332,0.00025493,30]
[361614177,1747642104380,500.0,0.00024493,120]
[361614178,1747642105159,500.0,0.00024493,120]
[361614179,1747642105929,500.0,0.00024493,120]
[361614180,1747642106717,500.0,0.00024493,120]
[361614181,1747642107478,500.0,0.00024493,120]
[361614182,1747642108638,500.0,0.00024493,120]
[361614183,1747642109412,500.0,0.00024493,120]
[361614184,1747642110236,500.0,0.00024493,120]
[361614185,1747642110970,500.0,0.00024493,120]
[361614186,1747642111740,500.0,0.00024493,120]
[361614187,1747642112508,500.0,0.00024493,120]
[361614188,1747642113677,500.0,0.00024493,120]
[361614189,1747642114464,500.0,0.00024493,120]
[361614190,1747642115235,500.0,0.00024493,120]
[361614191,1747642116011,500.0,0.00024493,120]
[361614192,1747642116779,500.0,0.00024493,120]
[361614193,1747642117531,500.0,0.00024493,120]
[361614194,1747642118295,500.0,0.00024493,120]
[361614195,1747642119124,547.27,0.00024493,120]
[361614243,1747642235278,203.1035,0.00027,120]
[361614272,1747642238156,-1124.24250417,0.00013426,2]
[361614275,1747642238168,-583.61999993,0.00013426,2]
[361614277,1747642238180,-655.28,0.00013426,2]
[361614284,1747642238231,-2636.8574959,0.00013426,2]
[361614286,1747642238240,-307.112212,0.00013699,2]
[361614288,1747642238249,-183.087065,0.00017053,2]
[361614290,1747642238259,-172.99682154,0.00017639,2]
[361614292,1747642238268,-578.97551153,0.00017652,2]
[361614294,1747642238277,-152.0,0.00017974,2]
[361614296,1747642238286,-588.97659366,0.00017982,2]
[361614298,1747642238296,-300.0,0.00017998,2]
[361614300,1747642238305,-183.90707758,0.00017998,2]
[361614302,1747642238317,-1016.09292242,0.00017998,2]
[361614305,1747642238326,-300.0,0.00017998,2]
[361614309,1747642238335,-1776.01078758,0.00017999,2]
[361614496,1747642240277,-461.38976797,0.00017999,2]
[361614499,1747642240288,-701.46346679,0.00017999,2]
[361614501,1747642240299,-603.519,0.00017999,2]
[361614507,1747642240349,-2073.16201026,0.00017999,2]
[361614791,1747642243336,-773.83,0.00017819,2]
[361616150,1747642260069,1498.77,0.00027397,120]
[361616700,1747642338340,160.0,0.00025493,30]
[361616701,1747642342852,18000.0,0.000273,120]
[361616702,1747642353207,100090.67483353,0.00025493,120]
[361616709,1747642377927,747.469321,0.00027397,120]
[361616710,1747642402816,232.0,0.00025493,120]
[361616711,1747642411029,2145.91132152,0.00025493,30]
[361616715,1747642546872,700.0,0.00027397,120]
[361616717,1747642570495,196.0,0.000273,120]
[361616718,1747642571936,196.0,0.000273,120]
[361616719,1747642588602,196.0,0.000273,120]
[361616720,1747642728431,414.30626332,0.00024926,30]
[361616723,1747642868102,2500.0,0.00011,2]
[361616724,1747642880110,200.0,0.00027397,120]
[361616725,1747642893419,5000.0,0.00024938,30]
[361616728,1747643077153,200000.0,0.00024938,120]
[361616741,1747643256934,505.01763923,0.00024938,30]
[361616742,1747643269641,2102.67092942,0.00024938,120]
[361616743,1747643290618,145852.08790382,0.00024938,30]
[361616744,1747643310935,505.84616348,0.00024938,120]
[361616745,1747643312116,2000.0,0.00024938,30]
[361616746,1747643313302,5335.12787013,0.00024938,120]
[361616747,1747643325187,301.47568059,0.00024938,120]
[361616748,1747643326344,1160.57501772,0.0002639,120]
[361616786,1747643432331,-5000.0,0.00013562,2]
[361616787,1747643432344,-307.904747,0.00013699,2]
[361616788,1747643432353,-522.2582952,0.000159,2]
[361616790,1747643432362,-305.62307408,0.000159,2]
[361616792,1747643432371,-1200.0,0.00015999,2]
[361616794,1747643432380,-1699.999999,0.00016,2]
[361616796,1747643432389,-305.6230738,0.0001621,2]
[361616798,1747643432398,-305.6230738,0.00016521,2]
[361616800,1747643432407,-305.6230738,0.00016831,2]
[361616802,1747643432416,-195.88439402,0.0001688,3]
[361616804,1747643432425,-300.0,0.00016898,2]
[361616806,1747643432434,-522.25829519,0.000169,2]
[361616808,1747643432443,-1951.5593406,0.0001702,2]
[361616810,1747643432452,-305.6230738,0.00017141,2]
[361616812,1747643432462,-435.96876305,0.00017447,2]
[361616814,1747643432471,-500.0,0.00017447,2]
[361616816,1747643432480,-500.0,0.00017447,2]
[361616818,1747643432489,-500.0,0.00017447,2]
[361616820,1747643432498,-606.62065716,0.00017447,2]
[361616822,1747643432507,-500.0,0.00017447,2]
[361616823,1747643432516,-500.0,0.00017447,2]
[361616824,1747643432526,-500.0,0.00017447,2]
[361616826,1747643432535,-500.0,0.00017447,2]
[361616828,1747643432544,-387.15466235,0.00017447,2]
[361616830,1747643432553,-500.0,0.00017447,2]
[361616832,1747643432562,-500.0,0.00017448,2]